Cogmind - Beta 14 @@@ ROGUE MODE // 2024.08.07 @ 22:07:29 Player: Sgt. SmokeWeed Result: Self-destructed Performance ------------- Evolutions (2) 1000 Regions Visited (7) 1400 Robots Destroyed (35) 175 Value Destroyed (936) 936 Prototype IDs (23) 460 Alien Tech Used (0) 0 Bonus (312) 312 TOTAL SCORE: 4283 Bonus ------- Follower Combat Kills 35 Aligned with FarCom 300 Friendly Fire -23 Cogmind --------- Core Integrity 550/550 Matter 136/300 Energy 265/265 System Corruption 0% Temperature Cool (0) Movement Treading (160) Location -8/Materials Parts ------- > --- POWER (1) -------- Improved Ion Engine > --- PROPULSION (2) --- Light Treads Medium Treads > --- UTILITY (4) ------ Targeting Computer PSU Rigger > --- WEAPON (4) ------- Shotgun Shotgun Shotgun Heavy Missile Launcher > --- INVENTORY (5) ---- Light Treads Light Treads Peak State ------------ > --- POWER ------------ Improved Ion Engine > --- PROPULSION ------- Light Treads Medium Treads > --- UTILITY ---------- Targeting Computer PSU Rigger > --- WEAPON ----------- Shotgun Shotgun Shotgun Heavy Missile Launcher > --- INVENTORY -------- Light Treads Light Treads [Rating: 26] Favorites ----------- Power Improved Ion Engine Engine Improved Ion Engine Propulsion Light Treads Treads Light Treads Leg Aluminum Leg Utility Weapon Shielding Device PSU Rigger Processor Targeting Computer Protection Weapon Shielding Weapon Shotgun Ballistic Gun Shotgun Ballistic Cannon Light Cannon Launcher Heavy Missile Launcher Build | -11 -10 -10 -9 -9 -9 -8 -8 ------- Run | Yrd Mat Min Mat Min Exi Min Mat Slots Evolved 4 | . . . 2 . . . 2 Power . | . . . . . . . . Propulsion . | . . . . . . . . Utility 2 | . . . . . . . 2 Weapon 2 | . . . 2 . . . . Parts Attached 26 | 7 4 5 5 3 1 . 1 Power 2 | 1 . 1 . . . . . Engine 2 | 1 . 1 . . . . . Core . | . . . . . . . . Reactor . | . . . . . . . . Propulsion 8 | 4 . 1 2 1 . . . Treads 6 | 2 . 1 2 1 . . . Leg 2 | 2 . . . . . . . Wheel . | . . . . . . . . Hover . | . . . . . . . . Flight . | . . . . . . . . Utility 6 | . . 3 1 . 1 . 1 Device 1 | . . . . . 1 . . Storage . | . . . . . . . . Processor 1 | . . . . . . . 1 Hackware . | . . . . . . . . Protection 4 | . . 3 1 . . . . Artifact . | . . . . . . . . Weapon 10 | 2 4 . 2 2 . . . Energy Gun . | . . . . . . . . Energy Cannon . | . . . . . . . . Ballistic Gun 7 | 2 3 . 2 . . . . Ballistic Cannon 1 | . 1 . . . . . . Launcher 2 | . . . . 2 . . . Special Weapon . | . . . . . . . . Impact Weapon . | . . . . . . . . Slashing Weapon . | . . . . . . . . Piercing Weapon . | . . . . . . . . Special Melee Weapon . | . . . . . . . . Unidentified Prototypes . | . . . . . . . . Parts Lost 3 | . . . 1 2 . . . Power . | . . . . . . . . Propulsion . | . . . . . . . . Utility 2 | . . . 1 1 . . . Weapon 1 | . . . . 1 . . . Highest Loss Streak 1 | . . . 1 1 . . . To Critical Strikes . | . . . . . . . . Average Slot Usage (%) 81 | . 71 77 100 80 82 88 75 Engine 12 | . 14 14 11 11 11 11 9 Treads 24 | . 28 28 22 22 22 22 18 Device 1 | . . . . . 5 11 9 Protection 5 | . . 6 22 3 . . . Ballistic Gun 31 | . 21 28 44 34 33 33 27 Ballistic Cannon 1 | . 6 . . . . . . Launcher 3 | . . . . 9 11 11 9 Peak Build Rating 26 | 5 7 10 15 17 25 25 26 Average Rating 12 | 4 5 7 14 15 20 25 25 On Entrance 12 | . 5 7 10 14 17 25 25 Naked Turns . | . . . . . . . . Heaviest Build 27 | 8 11 17 27 26 25 25 25 Greatest Support 48 | 40 40 40 40 48 48 48 48 Greatest Overweight (x) . | . . . . . . . . Average Overweight (x) . | . . . . . . . . Largest Inventory Capacity 5 | 5 5 5 5 5 5 5 5 Average Capacity 5 | 5 5 5 5 5 5 5 5 Most Carried 5 | . 5 4 4 3 3 3 3 Average Carried 2 | . 1 2 2 2 3 3 2 Final Capacity 5 | 5 5 5 5 5 5 5 5 Final Carried 3 | . 2 3 3 3 3 3 2 Class Distribution -------------------- 45% | Mutant 26% | Gunner 14% | Tank 7% | Skirmisher 6% | Scavenger-Tank Dominant Class ---------------- Mutant | -10/Materials Mutant | -10/Mines Tank | -9/Materials Gunner | -9/Mines Gunner | -9/Exiles Skirmisher | -8/Mines Skirmisher | -8/Materials Resources | -11 -10 -10 -9 -9 -9 -8 -8 ----------- Run | Yrd Mat Min Mat Min Exi Min Mat Matter Collected 1114 | 172 151 281 312 172 . . 26 Remotely . | . . . . . . . . Salvage Created 997 | . 145 272 310 144 . . 126 Parts 76 | . 13 20 28 5 . . 10 Haulers Intercepted . | . . . . . . . . Recyclers Shooed 2 | . . 1 1 . . . . Parts Field Recycled . | . . . . . . . . Retrieved Matter . | . . . . . . . . Parts Self-Destructed . | . . . . . . . . Prevented . | . . . . . . . . Kills | -11 -10 -10 -9 -9 -9 -8 -8 ------- Run | Yrd Mat Min Mat Min Exi Min Mat Combat Hostiles Destroyed 27 | . 5 7 9 3 . . 3 Guns 21 | . 4 7 9 1 . . . Cannons 1 | . 1 . . . . . . AOE 5 | . . . . 2 . . 3 Classes Destroyed 7 | . 3 2 1 . . . 1 Tunneler 1 | . . . . . . . 1 Recycler 2 | . . 1 . 1 . . . Watcher 5 | . 2 . 2 . . . 1 Swarmer 10 | . 3 3 4 . . . . Grunt 7 | . 2 2 1 2 . . . Duelist 2 | . . . 1 1 . . . Sentry 8 | . . 2 3 . . . 3 Best Kill Streak 5 | . 3 3 5 2 . . 3 Combat Bots Only 5 | . 3 3 5 2 . . 2 Max Kills in Single Turn 3 | . 1 1 3 1 . . 2 Gunslinging 2 | . . . 2 . . . . Exploded 1 | . . . . 1 . . 1 Melee . | . . . . . . . . Uniques/NPCs Destroyed . | . . . . . . . . Combat | -11 -10 -10 -9 -9 -9 -8 -8 -------- Run | Yrd Mat Min Mat Min Exi Min Mat Hostile Shots Fired 133 | . 22 40 42 19 . . 10 Missed 40 | . 7 11 13 8 . . 1 Damage Taken 1247 | . 134 347 366 266 . . 134 Core 176 | . 28 107 30 11 . . . Absorbed by Shields . | . . . . . . . . Redirected to Shielding 52 | . . . 52 . . . . Core Remaining (%) 78 | 100 . 46 . . . 89 . Volleys Fired 74 | . 17 21 19 8 . . 9 Largest 4 | . 2 2 4 4 . . 4 Hottest 108 | . 55 46 92 99 . . 108 Shots Fired 186 | . 34 42 76 20 . . 14 Gun 165 | . 26 42 76 15 . . 6 Cannon 8 | . 8 . . . . . . Launcher 13 | . . . . 5 . . 8 Special . | . . . . . . . . Kinetic 173 | . 34 42 76 15 . . 6 Thermal . | . . . . . . . . Explosive 13 | . . . . 5 . . 8 Electromagnetic . | . . . . . . . . Robot Hit Streak 12 | . 3 12 6 4 . . 5 Robot Miss Streak 9 | . 3 7 8 9 . . 3 Penetration Max . | . . . . . . . . Secondary Targets 3 | . . 1 2 . . . . Max Gunslinging Chain 2 | . . 1 2 . . . . Shots Hit Robots 115 | . 18 31 46 13 . . 7 Core Hits 59 | . 9 15 21 8 . . 6 Critical Kills . | . . . . . . . . Critical Parts Destroyed 1 | . . 1 . . . . . Critical Strikes 1 | . . 1 . . . . . Destroy 1 | . . 1 . . . . . Melee Attacks . | . . . . . . . . Impact . | . . . . . . . . Slashing . | . . . . . . . . Piercing . | . . . . . . . . Sneak Attacks . | . . . . . . . . Combat Hostiles . | . . . . . . . . Follow-up Attacks . | . . . . . . . . Damage Inflicted 2169 | . 273 452 708 400 . . 336 Guns 1490 | . 198 447 688 138 . . 19 Cannons 75 | . 75 . . . . . . Explosions 566 | . . . . 249 . . 317 Melee . | . . . . . . . . Ramming 38 | . . 5 20 13 . . . Kinetic 1565 | . 273 447 688 138 . . 19 Thermal . | . . . . . . . . Explosive 566 | . . . . 249 . . 317 Electromagnetic . | . . . . . . . . Impact . | . . . . . . . . Slashing . | . . . . . . . . Piercing . | . . . . . . . . Highest Corruption . | . . . . . . . . Average Corruption . | . . . . . . . . Corruption Purged . | . . . . . . . . Corruption Blocked . | . . . . . . . . Overload Shots . | . . . . . . . . Overflow Damage 36 | . . . . 1 . . 35 Projectiles . | . . . . . . . . Explosions 36 | . . . . 1 . . 35 Melee . | . . . . . . . . Knockbacks . | . . . . . . . . Impact . | . . . . . . . . Kinetic . | . . . . . . . . Secondary . | . . . . . . . . Self-Inflicted Damage 72 | . . . . 71 . . 1 Shots 3 | . . . . 2 . . 1 Rammed 5 | . . 1 4 . . . . Targets Rammed 6 | . . 1 4 1 . . . Kicked . | . . . . . . . . Crushed 1 | . . . . 1 . . . Highest Temperature 177 | . 22 15 177 98 . . 42 Average Temperature 40 | . 14 6 53 32 . . 14 Received Heat Transfer 345 | . 30 117 87 66 . . 45 Siege Activations . | . . . . . . . . Robots Corrupted . | . . . . . . . . Combat Hostiles . | . . . . . . . . Parts Fried . | . . . . . . . . Impact Corruptions . | . . . . . . . . Robots Melted . | . . . . . . . . Combat Hostiles . | . . . . . . . . Parts Melted . | . . . . . . . . Heat Transferred . | . . . . . . . . Parts Sabotaged . | . . . . . . . . Parts Stolen . | . . . . . . . . Parts Stripped . | . . . . . . . . Power Chain Reactions . | . . . . . . . . Alert | -11 -10 -10 -9 -9 -9 -8 -8 ------- Run | Yrd Mat Min Mat Min Exi Min Mat Peak Influence 350 | . 172 128 350 99 . . 240 Initial 54 | . . 8 23 54 . . . Average 80 | . 76 53 135 84 . . 115 Maximum Alert Level 1 | . . . 1 . . . 1 Low Security (%) 94 | 100 100 100 77 100 . 100 77 Level 1 5 | . . . 22 . . . 22 Level 2 . | . . . . . . . . Level 3 . | . . . . . . . . Level 4 . | . . . . . . . . Level 5 . | . . . . . . . . High Security . | . . . . . . . . Max Security . | . . . . . . . . Squads Dispatched 1 | . . . . . . . 1 Investigation . | . . . . . . . . Extermination . | . . . . . . . . Reinforcement 1 | . . . . . . . 1 Assault . | . . . . . . . . Garrison . | . . . . . . . . Intercept . | . . . . . . . . Searches Triggered . | . . . . . . . . Construction Impeded 1 | . . . . . . . 1 Haulers Reinforced . | . . . . . . . . Active Scanning Responses . | . . . . . . . . Cargo Convoy Interrupts . | . . . . . . . . Stealth | -11 -10 -10 -9 -9 -9 -8 -8 --------- Run | Yrd Mat Min Mat Min Exi Min Mat Distress Signals 2 | . 1 . 1 . . . . Communications Jammed . | . . . . . . . . Distress Signals . | . . . . . . . . Times Spotted 43 | . 10 7 18 4 . . 4 Peak Tracking Total 6 | . 3 3 6 2 . . 2 Tactical Retreats 2 | . 2 . . . . . . Traps | -11 -10 -10 -9 -9 -9 -8 -8 ------- Run | Yrd Mat Min Mat Min Exi Min Mat Traps Triggered 1 | . . . . 1 . . . Indirectly . | . . . . . . . . Trap Hack Attempts . | . . . . . . . . Triggered . | . . . . . . . . Disarmed . | . . . . . . . . Reprogrammed . | . . . . . . . . Reused . | . . . . . . . . Traps Extracted . | . . . . . . . . Installed . | . . . . . . . . Triggered . | . . . . . . . . Machines | -11 -10 -10 -9 -9 -9 -8 -8 ---------- Run | Yrd Mat Min Mat Min Exi Min Mat Machines Disabled 1 | . 1 . . . . . . Max in Single Turn 1 | . 1 . . . . . . Machines Repaired . | . . . . . . . . Machines Dismantled . | . . . . . . . . Machines Sabotaged . | . . . . . . . . Overloaded Fab Kills . | . . . . . . . . Hacking | -11 -10 -10 -9 -9 -9 -8 -8 --------- Run | Yrd Mat Min Mat Min Exi Min Mat Machines Accessed 7 | . 3 . 1 1 1 . 1 Terminals 5 | . 3 . 1 . . . 1 Fabricators . | . . . . . . . . Repair Stations . | . . . . . . . . Recycling Units . | . . . . . . . . Scanalyzers . | . . . . . . . . Garrison Access . | . . . . . . . . Total Hacks 13 | . 6 . 4 1 1 . 1 Successful 4 | . . . 1 1 1 . 1 Failed 9 | . 6 . 3 . . . . Catastrophic 3 | . 2 . 1 . . . . Database Lockouts . | . . . . . . . . Manual 11 | . 6 . 4 . 1 . . Terminals 11 | . 6 . 4 . . . 1 Fabricators . | . . . . . . . . Repair Stations . | . . . . . . . . Recycling Units . | . . . . . . . . Scanalyzers . | . . . . . . . . Garrison Access . | . . . . . . . . Terminal Hacks 4 | . . . 1 1 1 . 1 Open Door 1 | . . . . 1 . . . Branch Access Points 2 | . . . 1 . . . 1 Derelict Proto ID Bank 1 | . . . . . 1 . . Fabricator Hacks . | . . . . . . . . Repair Station Hacks . | . . . . . . . . Recycling Unit Hacks . | . . . . . . . . Scanalyzer . | . . . . . . . . Garrison Access Hacks . | . . . . . . . . Unauthorized Hacks . | . . . . . . . . Terminals . | . . . . . . . . Fabricators . | . . . . . . . . Repair Stations . | . . . . . . . . Recycling Units . | . . . . . . . . Scanalyzers . | . . . . . . . . Garrison Access . | . . . . . . . . Data Cores Recovered . | . . . . . . . . Used . | . . . . . . . . Hacking Detections 4 | . 3 . 1 . . . . Full Trace Events . | . . . . . . . . Feedback Events . | . . . . . . . . Feedback Blocked . | . . . . . . . . Robot Schematics Acquired . | . . . . . . . . Robots Built . | . . . . . . . . Authchips . | . . . . . . . . Time . | . . . . . . . . Total Robot Build Rating . | . . . . . . . . Part Schematics Acquired . | . . . . . . . . Parts Built . | . . . . . . . . Authchips . | . . . . . . . . Time . | . . . . . . . . Total Part Build Rating . | . . . . . . . . Parts Repaired . | . . . . . . . . Time . | . . . . . . . . Parts Recycled . | . . . . . . . . Recycled Matter . | . . . . . . . . Retrieved Matter . | . . . . . . . . Retrieved Components . | . . . . . . . . Parts Scanalyzed . | . . . . . . . . Part Schematics Acquired . | . . . . . . . . Parts Damaged . | . . . . . . . . Bothacking | -11 -10 -10 -9 -9 -9 -8 -8 ------------ Run | Yrd Mat Min Mat Min Exi Min Mat Used RIF Installer . | . . . . . . . . Robots Hacked . | . . . . . . . . Non-combat . | . . . . . . . . Combat . | . . . . . . . . Robot Hacks Applied . | . . . . . . . . Relay Couplers Released . | . . . . . . . . Fabnet Peak Effective % . | . . . . . . . . Robots Rewired . | . . . . . . . . Allies Hacked . | . . . . . . . . Hacks Repelled . | . . . . . . . . Allies | -11 -10 -10 -9 -9 -9 -8 -8 -------- Run | Yrd Mat Min Mat Min Exi Min Mat Total Allies 2 | . . . . 2 . . . Largest Group 2 | . . . . 2 2 . . Highest-Rated Group 41 | . . . . 41 41 . . Highest-Rated Ally 31 | . . . . 31 31 . . Total Orders . | . . . . . . . . Ally Attacks 4 | . . . . 4 . . . Total Damage 42 | . . . . 42 . . . Kills 1 | . . . . 1 . . . Allies Corrupted . | . . . . . . . . Allies Melted . | . . . . . . . . Intel | -11 -10 -10 -9 -9 -9 -8 -8 ------- Run | Yrd Mat Min Mat Min Exi Min Mat Robot Analysis Total . | . . . . . . . . Derelict Logs Recovered 2 | . . . . 2 . . . Drone Launches . | . . . . . . . . Drone Recoveries . | . . . . . . . . Exploration | -11 -10 -10 -9 -9 -9 -8 -8 ------------- Run | Yrd Mat Min Mat Min Exi Min Mat Turns Passed 2682 | 69 510 643 421 496 344 55 144 Spaces Moved 1456 | 47 275 335 199 275 215 35 75 Core 7 | 7 . . . . . . . Treads 1428 | 19 275 335 199 275 215 35 75 Legs 21 | 21 . . . . . . . Wheels . | . . . . . . . . Hover . | . . . . . . . . Flight . | . . . . . . . . Fastest Speed 50 | 50 160 160 160 160 160 160 160 Average Speed 158 | 125 160 160 160 160 160 160 160 Slowest Speed 160 | 160 160 160 160 160 160 160 160 Overloaded Moves . | . . . . . . . . Propulsion Burnouts . | . . . . . . . . Robots Hopped . | . . . . . . . . Cave-ins Triggered . | . . . . . . . . Exploration Rate (%) 36 | 4 51 66 21 63 61 12 14 Regions Visited 7 Branch Regions 4 Pre-discovered Areas . | . . . . . . . . Known Exits Taken 1 | . . . 1 . . . . Unknown Exits Taken 6 | 1 1 1 . 1 1 1 . Scrap Searched 3 | . . 1 . 2 . . . Spaces Dug . | . . . . . . . . Terrain Destroyed 168 | . . . . 62 . . 106 Melee . | . . . . . . . . Projectile . | . . . . . . . . AOE 168 | . . . . 62 . . 106 Terrain Rammed . | . . . . . . . . Walls Destroyed . | . . . . . . . . Machines Disabled . | . . . . . . . . Actions | -11 -10 -10 -9 -9 -9 -8 -8 --------- Run | Yrd Mat Min Mat Min Exi Min Mat Total 1666 | 55 311 399 252 315 215 34 85 Wait 91 | . 8 34 21 28 . . . Move 1449 | 46 274 334 198 274 214 34 75 Hop . | . . . . . . . . Pick Up 7 | . 4 1 2 . . . . Fast Attach 12 | 7 1 3 . . 1 . . Attach 4 | . . . 2 1 . . 1 Detach . | . . . . . . . . Swap 10 | . 3 2 3 2 . . . Drop 13 | 2 4 3 3 1 . . . Fire 74 | . 17 21 19 8 . . 9 Melee . | . . . . . . . . Ram . | . . . . . . . . Kick . | . . . . . . . . Crush 6 | . . 1 4 1 . . . Escape Stasis . | . . . . . . . . Rewire . | . . . . . . . . Trap . | . . . . . . . . Miscellaneous . | . . . . . . . . Route ------- -11/Scrapyard -10/Materials (discovered 2 exits: *Mat / [*Min]) -10/Mines -9/Materials (discovered 3 exits: *Min / Sto x2) -9/Mines (discovered 2 exits: *Mat / *Exi) -9/Exiles -8/Mines -8/Materials (discovered 1 exit: Fac) History --------- Turn | Location | Event 23 | -11/Scrapyard | Discovered new exit (range 12) 70 | -11/Scrapyard | Entered Materials 300 | -10/Materials | Build established: Mutant 433 | -10/Materials | Discovered new exit (range 11) 561 | -10/Materials | Discovered new exit (range 11) 580 | -10/Materials | Entered Mines 747 | -10/Mines | A weapon hastily lodged in a ceiling crevice suddenly fell to the ground 1024 | -10/Mines | Core integrity fell below 50% 1201 | -10/Mines | Discovered new exit (range 13) 1223 | -10/Mines | Entered Materials 1223 | -9/Materials | Evolved 2 slots: Weapon x2 1553 | -9/Materials | Identified exit to Mines 1553 | -9/Materials | Identified exit to Storage 1644 | -9/Materials | Entered Mines 1667 | -9/Mines | Learned 2 Materials zone layouts 1760 | -9/Mines | Met a Derelict who couldn't figure out how to use a Trap Extractor 1941 | -9/Mines | Discovered new exit (range 12) 2013 | -9/Mines | Learned Materials garrison access intel 2086 | -9/Mines | Build established: Gunner 2104 | -9/Mines | Deemed a non-threat by the Exiles lab entrance 2104 | -9/Mines | Discovered new exit (range 5) 2140 | -9/Mines | Entered Exiles 2140 | -9/Exiles | Accompanied by 2 allies 2170 | -9/Exiles | Led the pair of lost Derelicts to a safe place 2182 | -9/Exiles | Met 8R-AWN 2208 | -9/Exiles | Met EX-HEX 2256 | -9/Exiles | Met EX-BIN 2275 | -9/Exiles | Aligned with FarCom system 2276 | -9/Exiles | Given EX-Vault access code 2315 | -9/Exiles | Opened EX-Vault 2324 | -9/Exiles | Found PSU Rigger 2360 | -9/Exiles | Warned to stay clear of 0b10 Research branches 2412 | -9/Exiles | Met EX-DEC 2472 | -9/Exiles | Discovered new exit (range 10) 2484 | -9/Exiles | Left Exiles lab with PSU Rigger 2484 | -9/Exiles | Entered Mines 2529 | -8/Mines | Discovered new exit (range 7) 2539 | -8/Mines | Entered Materials 2539 | -8/Materials | Evolved 2 slots: Utility x2 2540 | -8/Materials | Identified exit to Factory 2541 | -8/Materials | Loaded intel: 1 garrison access location 2683 | -8/Materials | Self-destructed Last Messages --------------- Receiving FarCom transmissions... Loading 2 Materials zones... Loading Materials garrison access intel (x1)... Connecting with Terminal... Current location identified: Materials >>Access(Branch) No branch access points found. Destroyed Imp. Hover Unit. The unstable cave ceiling collapses. Y-45 Defender destroyed. The unstable cave ceiling collapses. ALERT: Construction progress impeded, dispatching reinforcements to local area. Y-45 Defender destroyed. The unstable cave ceiling collapses. U-05 Engineer builds a Wall. Acquired 26 matter. U-05 Engineer builds a Wall. U-05 Engineer lays Concrete. Connecting with Terminal... Map ----- +----------------------------------------------------+ | ???????????????# ""S #?????????????# #??# #? | | ???????????????# "" #?????????????# #??# #? | | ???????????????# #????####+##### #### #?? | | ?????# ??????# #????# #?? | | ?????# ??????# """ #????# #?? | | ?????# ??????# """ #????# #?? | | ###### ?????# """ #????# ############+##?? | | # ????# #????# # ! #?? T ?? | | """ # ????# ##???# # #?# | | """ # #### ##### + #?# | | """ # = # """ #?# "" | | """ + =% # """ #?# ! "" | | # [ #?""" #?# "" | | # ####### ######+##?######?# "" | | ###+???????# = ##??? ????????# "" | | ## ???????###| ###?? """ ??????# | | ####### ?????????# #???# """"" #?????#######? | | ??????# ????????## #???# """"" #????????????? | | ??????# ????????# ##??# """"" #????????????? | | ??????# ????????# ##?# """ #????????????? | | ??????# ??####### #?# ??????????????????? | | ??????# ??# [ #?# ???????????????????? | | ??????# ??# ########?????????????????? | | ?########??# """ #?????????????????? | | ?# """ #??# "T" #?????????????????? | | ?# "R" #??# # # @ #?????????????????? | | ?# " " #??# #?????????????????? | | ?# Y??###### #?????????????????? | | ???????????????# ! ####?????????????????? | | ???????????????## #??????????????????? | | ????????????????# [% #??????????????????? | | ????????????????# a #??????????????????? | | ????????????????# #u #??????????????????? | | ????????????????### # #??????????????????? | | ??????????g???????### # # # #??????????????????? | | ????????????????????####### #??????????????????? | | ??????????????????????????? ??????????????????? | | ???????????????????????????? ?????????????????? | | ???????????????????????????? ????????????????? | | ????????????????????????????#####????????????????? | | ?????????????????????????????????????????????????? | | ?????????????????????????????????????????????????? | | ?????????????????????????????????????????????????? | | ?????????????????????????????????????????????????? | | ?????????????????????????????????????????????????? | | ?????????????????????????????????????????????????? | | ?????????????????????????????????????????????????? | | ?????????????????????????????????????????????????? | | ?????????????????????????????????????????????????? | | ?????????????????????????????????????????????????? | +----------------------------------------------------+ Best States ------------- Heat Dissipation 31 Energy Generation 12 Energy Capacity 265 Matter Stores 300 Matter Capacity 300 Sight Range 16 Terrain Scan Density 10 Armor Coverage 225 Power Shielding 33 Weapon Shielding 33 Evasion (%) 55 Targeting Accuracy 5 Recoil Reduction 2 Item Schematics ----------------- None Robot Schematics ------------------ None Fabricated ------------ Nothing Alien Tech Used ----------------- None Achievements -------------- None Challenges ------------ None Game ------ Seed MappingAssembledLauncher Manual? 0 Play Time 00:14:37 Cumulative 65.2 hours Start 2024.08.07 @ 21:53:53 End 2024.08.07 @ 22:07:29 Sessions 1 Manual Loads 0 Difficulty Rogue Special Mode None Game No. 152 Rogue 77 Adventurer 75 Explorer 0 Win Type - Total 0 Types 0/0/0/0/0/0/0/0/0 Lore% 24 Gallery% 40 Achievement% 34 Wizard Run 0 Options --------- Layout 0 ASCII 0 Keyboard 0 Movement Mouse Keybinds 0 Fullscreen 1 Font 24/Smallcaps Map View 76x50 Zoom Use 0% Tactical HUD 0 Map Filters NONE Filters NONE Steam 1 RUN: 1a23e0bc-abfb-4ac0-acaf-49dddd2209ca